fUST/lending_fUST_20240721
["ID","MTS","AMOUNT","RATE_DAILY","PERIOD"]
[332769744,1721509868125,-500.0,0.00015068,2]
[332769745,1721509868136,-552.96,0.00015068,2]
[332769746,1721509868146,-1988.14,0.00015068,2]
[332769747,1721509868155,-1939.37,0.00015068,2]
[332769748,1721509868164,-809.27,0.00015068,2]
[332769749,1721509868174,-603.1,0.00015068,2]
[332769750,1721509868184,-1333.39,0.00015068,2]
[332769751,1721509868193,-120.02802264,0.00015068,2]
[332769752,1721509868582,-446.21890474,0.00013698,2]
[332769753,1721509868592,-421.21197736,0.00015068,2]
[332769754,1721509868602,-3997.67,0.00015068,2]
[332769755,1721509868613,-881.43523279,0.00015068,2]
[332769756,1721509940105,154.77557542,9.999e-05,2]
[332769757,1721509993328,3000.0,0.000225,30]
[332769758,1721510126534,886.69945743,9.999e-05,2]
[332769759,1721510217790,3160.85026954,0.0002501,120]
[332769773,1721510495422,239.89881475,9.999e-05,2]
[332769774,1721510511036,375.39217735,9.999e-05,2]
[332769790,1721510593928,3000.0,0.000225,30]
[332769791,1721510608852,2215.22078469,9.999e-05,2]
[332769792,1721510617273,17904.12889241,9.999e-05,2]
[332769793,1721510617310,1533.3070145,9.999e-05,2]
[332769794,1721510618495,2039.19830605,9.999e-05,2]
[332769795,1721510625946,2110.17954756,9.999e-05,2]
[332769796,1721510634323,1625.09007099,9.999e-05,2]
[332769797,1721510651477,233.23975968,9.999e-05,2]
[332769806,1721510667735,3780.83916095,9.999e-05,2]
[332769807,1721510669636,192.15666977,9.999e-05,2]
[332769808,1721510673334,522.84904634,9.999e-05,2]
[332769809,1721510676347,402.79270453,9.999e-05,2]
[332769810,1721510678373,156.40216408,9.999e-05,2]
[332769811,1721510682439,193.95450379,9.999e-05,2]
[332769812,1721510690144,156.27674988,9.999e-05,2]
[332769814,1721510695052,180.23802632,9.999e-05,2]
[332769815,1721510699247,12755.30639987,9.999e-05,2]
[332769816,1721510712185,258.95269249,9.999e-05,2]
[332769817,1721510725899,155.54259734,9.999e-05,2]
[332769818,1721510731827,1622.37696185,9.999e-05,2]
[332769819,1721510737700,156.72164257,9.999e-05,2]
[332769820,1721510738072,155.01160344,9.999e-05,2]
[332769821,1721510753512,248.89051109,9.999e-05,2]
[332769824,1721510765457,3773.22036941,9.999e-05,2]
[332769825,1721510779499,339.28552324,9.999e-05,2]
[332769826,1721510788606,156.40216408,9.999e-05,2]
[332769827,1721510811061,180.0376296,9.999e-05,2]
[332769831,1721510859772,1800.0,0.00025,120]
[332769832,1721510867882,156.40216408,9.999e-05,2]
[332769833,1721510872096,287.14415021,0.0001,2]
[332769838,1721510897478,819.59002386,9.999e-05,2]
[332769839,1721510925716,2045.32526605,0.0001,2]
[332769848,1721510958887,156.40216408,9.999e-05,2]
[332769850,1721511019975,403.99333324,9.999e-05,2]
[332769851,1721511025860,154.83733742,9.999e-05,2]
[332769853,1721511031898,156.40216408,9.999e-05,2]
[332769925,1721511038641,-250.0,0.0001079,2]
[332769926,1721511038651,-250.0,0.00010819,2]
[332769927,1721511038660,-250.0,0.00010849,2]
[332769928,1721511038669,-250.0,0.00010878,2]
[332769929,1721511038678,-250.0,0.00010908,2]
[332769930,1721511038687,-250.0,0.00010938,2]
[332769931,1721511038696,-250.0,0.00010967,2]
[332769932,1721511038705,-250.0,0.00010997,2]
[332769933,1721511038714,-250.0,0.00011026,2]
[332769934,1721511038724,-250.0,0.00011056,2]
[332769935,1721511038733,-250.0,0.00011086,2]
[332769936,1721511038743,-250.0,0.00011115,2]
[332769937,1721511038752,-250.0,0.00011145,2]
[332769938,1721511038763,-300.0,0.00011173,2]
[332769939,1721511038772,-22742.3083741,0.00011174,2]
[332769940,1721511038782,-250.0,0.00011174,2]
[332769941,1721511038792,-250.0,0.00011204,2]
[332769942,1721511038801,-250.0,0.00011234,2]
[332769943,1721511038811,-250.0,0.00011263,2]
[332769944,1721511038821,-250.0,0.00011293,2]
[332769945,1721511038831,-250.0,0.00011322,2]
[332769946,1721511038840,-250.0,0.00011352,2]
[332769947,1721511038850,-922.5685701,0.00011758,2]
[332769948,1721511038859,-10177.99999901,0.0001195,4]
[332769949,1721511038873,-500.61107229,0.00012119,2]
[332769950,1721511038882,-154.96125969,0.0001212,2]
[332769951,1721511038891,-186.8271308,0.0001212,2]
[332769952,1721511038901,-227.28028467,0.00012121,2]
[332769953,1721511038911,-922.56857006,0.00012218,2]
[332769954,1721511038920,-420.0,0.0001229,2]
[332769955,1721511038930,-922.56857006,0.00012678,2]
[332769956,1721511038939,-3325.3727831,0.000129,2]
[332769957,1721511038949,-3325.37278306,0.00012921,2]
[332769958,1721511038958,-922.56857006,0.00013138,2]
[332769959,1721511038968,-150.0,0.000132,2]
[332769960,1721511038978,-587.0,0.00013519,2]
[332769961,1721511038987,-922.56857006,0.00013598,2]
[332769962,1721511038996,-1535.87335347,0.00013598,2]
[332769963,1721511039005,-2000.0,0.00013598,2]
[332769964,1721511039015,-337020.530058,0.00013688,2]
[332769965,1721511039024,-500.0,0.00013698,2]
[332769966,1721511039034,-500.0,0.00013698,2]
[332769967,1721511039043,-391.90915622,0.00013698,2]
[332769968,1721511039052,-643.38,0.00013698,2]
[332769969,1721511039061,-653.87,0.00013698,2]
[332769970,1721511039071,-335.08887657,0.00013698,2]
[332769971,1721511039079,-627.46,0.00013698,2]
[332769972,1721511039089,-840.32,0.00013698,2]
[332769973,1721511039098,-500.0,0.00013698,2]
[332769974,1721511039107,-500.0,0.00013698,2]
[332769975,1721511039117,-500.0,0.00013698,2]
[332769976,1721511039126,-500.0,0.00013698,2]
[332769977,1721511039136,-500.0,0.00013698,2]
[332769978,1721511039145,-539.67,0.00013698,2]
[332769979,1721511039154,-545.40045561,0.00013698,2]
[332769980,1721511039164,-500.0,0.00013698,2]
[332769981,1721511039173,-787.39,0.00013698,2]
[332769982,1721511039182,-500.0,0.00013698,2]
[332769983,1721511039191,-500.0,0.00013698,2]
[332769984,1721511039200,-500.0,0.00013698,2]
[332769985,1721511039210,-500.0,0.00013698,2]
[332769986,1721511039219,-500.0,0.00013698,2]
[332769987,1721511039229,-500.0,0.00013698,2]
[332769988,1721511039238,-500.0,0.00013698,2]
[332769989,1721511039247,-500.0,0.00013698,2]
[332769990,1721511039256,-500.0,0.00013698,2]
[332769991,1721511039266,-925.93,0.00013698,2]
[332769992,1721511039275,-500.0,0.00013698,2]
[332769993,1721511039284,-502.09315046,0.00013698,2]
[332769994,1721511039293,-500.0,0.00013698,2]
[332769995,1721511039302,-500.0,0.00013698,2]
[332769996,1721511039312,-500.0,0.00013698,2]
[332769997,1721511039322,-500.0,0.00013698,2]
[332769998,1721511039331,-528.53,0.00013698,2]
[332769999,1721511039340,-500.0,0.00013698,2]
[332770000,1721511039349,-500.0,0.00013698,2]
[332770001,1721511039358,-500.0,0.00013698,2]
[332770002,1721511039368,-500.0,0.00013698,2]
[332770003,1721511039377,-500.0,0.00013698,2]
[332770004,1721511039387,-527.11963763,0.00013698,2]
[332770005,1721511039396,-500.0,0.00013698,2]
[332770006,1721511039405,-500.0,0.00013698,2]
[332770007,1721511039415,-500.0,0.00013698,2]
[332770008,1721511039425,-500.0,0.00013698,2]
[332770009,1721511039434,-500.0,0.00013698,2]
[332770010,1721511039443,-500.0,0.00013698,2]
[332770011,1721511039452,-500.0,0.00013698,2]
[332770012,1721511039461,-500.0,0.00013698,2]
[332770013,1721511039471,-500.0,0.00013698,2]
[332770014,1721511039480,-721.14,0.00013698,2]
[332770015,1721511039490,-150.0,0.00013698,2]
[332770016,1721511039500,-574.91,0.00013698,2]
[332770017,1721511039509,-500.0,0.00013698,2]
[332770018,1721511039518,-381.21198987,0.00013698,2]
[332770019,1721511039527,-255.62,0.00013698,2]
[332770020,1721511039536,-500.0,0.00013698,2]
[332770021,1721511039546,-500.0,0.00013698,2]
[332770022,1721511039556,-500.0,0.00013698,2]
[332770023,1721511039566,-500.0,0.00013698,2]
[332770024,1721511039575,-182.45544952,0.00013698,2]
[332770025,1721511039585,-500.0,0.00013698,2]
[332770026,1721511039594,-500.0,0.00013698,2]
[332770027,1721511039604,-500.0,0.00013698,2]
[332770028,1721511039613,-500.0,0.00013698,2]
[332770029,1721511039622,-500.0,0.00013698,2]
[332770030,1721511039631,-500.0,0.00013698,2]
[332770031,1721511039643,-500.0,0.00013698,2]
[332770032,1721511039652,-500.0,0.00013698,2]
[332770033,1721511039661,-1696.95,0.00013698,2]
[332770034,1721511039670,-500.0,0.00013698,2]
[332770035,1721511039679,-500.0,0.00013698,2]
[332770036,1721511039688,-500.0,0.00013698,2]
[332770037,1721511039698,-500.0,0.00013698,2]
[332770038,1721511039707,-151.12419647,0.00013698,2]
[332770039,1721511039716,-256.28354357,0.00013698,2]
[332770040,1721511039725,-500.0,0.00013698,2]
[332770041,1721511039734,-511.77,0.00013698,2]
[332770042,1721511039743,-500.0,0.00013698,2]
[332770043,1721511039753,-500.0,0.00013698,2]
[332770044,1721511039762,-500.0,0.00013698,2]
[332770045,1721511039773,-274.77327132,0.00013698,2]
[332770046,1721511039784,-500.0,0.00013698,2]
[332770047,1721511039795,-655.48,0.00013698,2]
[332770048,1721511039805,-500.0,0.00013698,2]
[332770049,1721511039818,-500.0,0.00013698,2]
[332770050,1721511039828,-500.0,0.00013698,2]
[332770051,1721511039839,-502.03335675,0.00013698,2]
[332770052,1721511039849,-1385.14,0.00013698,2]
[332770053,1721511039859,-500.0,0.00013698,2]
[332770054,1721511039875,-527.71,0.00013698,2]
[332770055,1721511039887,-500.0,0.00013698,2]
[332770056,1721511039898,-1739.63,0.00013698,2]
[332770057,1721511039909,-500.0,0.00013698,2]
[332770058,1721511039919,-500.0,0.00013698,2]
[332770059,1721511039929,-500.0,0.00013698,2]
[332770060,1721511039939,-661.35,0.00013698,2]
[332770061,1721511039948,-500.0,0.00013698,2]
[332770062,1721511039958,-2664.89,0.00013698,2]
[332770064,1721511039968,-500.0,0.00013698,2]
[332770065,1721511039978,-2483.74,0.00013698,2]
[332770066,1721511039988,-500.0,0.00013698,2]
[332770067,1721511039999,-710.92,0.00013698,2]
[332770068,1721511040011,-502.60980733,0.00013698,2]
[332770069,1721511040020,-500.0,0.00013698,2]
[332770070,1721511040030,-500.0,0.00013698,2]
[332770071,1721511040043,-500.0,0.00013698,2]
[332770072,1721511040054,-797.75,0.00013698,2]
[332770073,1721511040064,-500.0,0.00013698,2]
[332770074,1721511040075,-510.58623771,0.00013698,2]
[332770076,1721511040084,-500.0,0.00013698,2]
[332770078,1721511040094,-1121.73,0.00013698,2]
[332770079,1721511040104,-982.38,0.00013698,2]
[332770080,1721511040114,-523.88,0.00013698,2]
[332770081,1721511040125,-500.0,0.00013698,2]
[332770082,1721511040135,-500.0,0.00013698,2]
[332770083,1721511040145,-938.39,0.00013698,2]
[332770084,1721511040156,-500.0,0.00013698,2]
[332770086,1721511040167,-562.97,0.00013698,2]
[332770087,1721511040178,-500.0,0.00013698,2]
[332770089,1721511040187,-500.0,0.00013698,2]
[332770090,1721511040199,-1747.81,0.00013698,2]
[332770091,1721511040209,-500.0,0.00013698,2]
[332770092,1721511040218,-948.41,0.00013698,2]
[332770093,1721511040228,-2000.0,0.00013698,2]
[332770094,1721511040237,-500.0,0.00013698,2]
[332770095,1721511040247,-500.0,0.00013698,2]
[332770096,1721511040256,-500.0,0.00013698,2]
[332770097,1721511040266,-510.42578769,0.00013698,2]
[332770098,1721511040275,-500.0,0.00013698,2]
[332770099,1721511040284,-564.72,0.00013698,2]
[332770100,1721511040294,-500.0,0.00013698,2]
[332770101,1721511040304,-509.41848931,0.00013698,2]
[332770102,1721511040319,-500.0,0.00013698,2]
[332770103,1721511040330,-500.0,0.00013698,2]
[332770104,1721511040341,-500.0,0.00013698,2]
[332770105,1721511040350,-506.27059481,0.00013698,2]
[332770106,1721511040360,-500.0,0.00013698,2]
[332770107,1721511040369,-500.0,0.00013698,2]
[332770108,1721511040378,-500.0,0.00013698,2]
[332770109,1721511040387,-501.72983271,0.00013698,2]
[332770110,1721511040397,-3488.43,0.00013698,2]
[332770111,1721511040406,-500.0,0.00013698,2]
[332770112,1721511040416,-500.0,0.00013698,2]
[332770113,1721511040425,-500.0,0.00013698,2]
[332770114,1721511040434,-500.0,0.00013698,2]
[332770115,1721511040445,-502.63355936,0.00013698,2]
[332770116,1721511040456,-1240.03,0.00013698,2]
[332770117,1721511040467,-500.0,0.00013698,2]
[332770118,1721511040478,-500.0,0.00013698,2]
[332770119,1721511040487,-719.99,0.00013698,2]
[332770120,1721511040497,-500.0,0.00013698,2]
[332770121,1721511040506,-635.31,0.00013698,2]
[332770122,1721511040515,-500.0,0.00013698,2]
[332770123,1721511040525,-500.0,0.00013698,2]
[332770124,1721511040535,-661.58,0.00013698,2]
[332770125,1721511040545,-500.0,0.00013698,2]
[332770126,1721511040554,-254.88943529,0.00013698,2]
[332770127,1721511040565,-500.0,0.00013698,2]
[332770128,1721511040574,-516.38,0.00013698,2]
[332770129,1721511040584,-720.83,0.00013698,2]
[332770130,1721511040594,-515.84546709,0.00013698,2]
[332770131,1721511040603,-657.94,0.00013698,2]
[332770132,1721511040612,-500.0,0.00013698,2]
[332770133,1721511040621,-500.0,0.00013698,2]
[332770134,1721511040631,-500.0,0.00013698,2]
[332770135,1721511040640,-500.0,0.00013698,2]
[332770136,1721511040649,-1031.15,0.00013698,2]
[332770137,1721511040658,-500.0,0.00013698,2]
[332770138,1721511040667,-500.0,0.00013698,2]
[332770139,1721511040677,-500.0,0.00013698,2]
[332770140,1721511040686,-500.0,0.00013698,2]
[332770141,1721511040695,-500.0,0.00013698,2]
[332770142,1721511040705,-500.0,0.00013698,2]
[332770143,1721511040714,-500.0,0.00013698,2]
[332770144,1721511040723,-500.0,0.00013698,2]
[332770145,1721511040732,-803.99,0.00013698,2]
[332770146,1721511040741,-500.0,0.00013698,2]
[332770147,1721511040751,-513.24561122,0.00013698,2]
[332770148,1721511040760,-500.0,0.00013698,2]
[332770149,1721511040770,-500.0,0.00013698,2]
[332770150,1721511040780,-675.6,0.00013698,2]
[332770151,1721511040791,-874.51,0.00013698,2]
[332770152,1721511040801,-500.0,0.00013698,2]
[332770153,1721511040811,-500.0,0.00013698,2]
[332770154,1721511040820,-1068.75,0.00013698,2]
[332770155,1721511040829,-500.0,0.00013698,2]
[332770156,1721511040838,-500.0,0.00013698,2]
[332770157,1721511040847,-508.33268368,0.00013698,2]
[332770158,1721511040856,-500.0,0.00013698,2]
[332770159,1721511040868,-500.0,0.00013698,2]
[332770160,1721511040878,-500.0,0.00013698,2]
[332770161,1721511040888,-500.0,0.00013698,2]
[332770162,1721511040897,-2270.29,0.00013698,2]
[332770163,1721511040906,-500.0,0.00013698,2]
[332770164,1721511040917,-714.63,0.00013698,2]
[332770165,1721511040926,-500.0,0.00013698,2]
[332770166,1721511040935,-500.0,0.00013698,2]
[332770167,1721511040947,-500.0,0.00013698,2]
[332770168,1721511040956,-500.0,0.00013698,2]
[332770169,1721511040966,-2247.99,0.00013698,2]
[332770170,1721511040975,-500.0,0.00013698,2]
[332770171,1721511040984,-500.0,0.00013698,2]
[332770172,1721511040993,-500.0,0.00013698,2]
[332770173,1721511041002,-502.76716104,0.00013698,2]
[332770174,1721511041011,-500.0,0.00013698,2]
[332770175,1721511041223,-500.0,0.00013698,2]
[332770176,1721511041233,-500.0,0.00013698,2]
[332770177,1721511041243,-1423.72,0.00013698,2]
[332770178,1721511041254,-500.0,0.00013698,2]
[332770179,1721511041264,-500.0,0.00013698,2]
[332770180,1721511041273,-500.0,0.00013698,2]
[332770181,1721511041284,-1571.5,0.00013698,2]
[332770182,1721511041294,-500.0,0.00013698,2]
[332770183,1721511041305,-500.0,0.00013698,2]
[332770184,1721511041316,-500.0,0.00013698,2]
[332770185,1721511041325,-500.0,0.00013698,2]
[332770186,1721511041335,-500.0,0.00013698,2]
[332770187,1721511041345,-500.0,0.00013698,2]
[332770188,1721511041355,-501.43123297,0.00013698,2]
[332770189,1721511041366,-500.0,0.00013698,2]
[332770190,1721511041376,-500.0,0.00013698,2]
[332770191,1721511041388,-721.02,0.00013698,2]
[332770192,1721511041399,-500.0,0.00013698,2]
[332770193,1721511041410,-608.63406425,0.00013698,2]
[332770194,1721511041419,-500.0,0.00013698,2]
[332770195,1721511041429,-500.0,0.00013698,2]
[332770196,1721511041439,-500.0,0.00013698,2]
[332770197,1721511041449,-500.0,0.00013698,2]
[332770198,1721511041460,-500.0,0.00013698,2]
[332770199,1721511041471,-500.0,0.00013698,2]
[332770200,1721511041482,-500.0,0.00013698,2]
[332770201,1721511041493,-500.0,0.00013698,2]
[332770202,1721511041504,-500.0,0.00013698,2]
[332770203,1721511041514,-1686.14,0.00013698,2]
[332770204,1721511041523,-500.0,0.00013698,2]
[332770205,1721511041534,-1159.54,0.00013698,2]
[332770206,1721511041543,-739.55,0.00013698,2]
[332770207,1721511041552,-500.0,0.00013698,2]
[332770208,1721511041563,-518.24520718,0.00013698,2]
[332770209,1721511041572,-1621.57,0.00013698,2]
[332770210,1721511041582,-521.45625736,0.00013698,2]
[332770211,1721511041593,-500.0,0.00013698,2]
[332770212,1721511041605,-500.0,0.00013698,2]
[332770213,1721511041616,-1089.53,0.00013698,2]
[332770214,1721511041627,-500.0,0.00013698,2]
[332770215,1721511041639,-511.32174449,0.00013698,2]
[332770216,1721511041650,-500.0,0.00013698,2]
[332770217,1721511041661,-500.0,0.00013698,2]
[332770218,1721511041671,-556.66494551,0.00013698,2]
[332770219,1721511041680,-500.0,0.00013698,2]
[332770220,1721511041690,-1412.33,0.00013698,2]
[332770221,1721511041700,-500.0,0.00013698,2]
[332770222,1721511041711,-500.0,0.00013698,2]
[332770223,1721511041722,-598.46,0.00013698,2]
[332770224,1721511041733,-500.0,0.00013698,2]
[332770225,1721511041742,-1405.9,0.00013698,2]
[332770226,1721511041751,-500.0,0.00013698,2]
[332770227,1721511041760,-500.4941119,0.00013698,2]
[332770228,1721511041771,-500.0,0.00013698,2]
[332770229,1721511041780,-500.0,0.00013698,2]
[332770230,1721511041790,-748.03,0.00013698,2]
[332770231,1721511041800,-335.80325809,0.00013698,2]
[332770232,1721511041811,-500.0,0.00013698,2]
[332770233,1721511041820,-500.0,0.00013698,2]
[332770234,1721511041829,-500.0,0.00013698,2]
[332770235,1721511041840,-2040.11,0.00013698,2]
[332770236,1721511041849,-621.48,0.00013698,2]
[332770237,1721511041858,-503.70346198,0.00013698,2]
[332770238,1721511041872,-500.0,0.00013698,2]
[332770239,1721511041881,-856.47,0.00013698,2]
[332770240,1721511041890,-557.85,0.00013698,2]
[332770241,1721511041900,-500.0,0.00013698,2]
[332770242,1721511041910,-500.0,0.00013698,2]
[332770243,1721511041921,-766.87,0.00013698,2]
[332770244,1721511041933,-500.0,0.00013698,2]
[332770245,1721511041944,-177.09484028,0.00013698,2]
[332770246,1721511041954,-519.99834268,0.00013698,2]
[332770247,1721511041964,-551.34285931,0.00013698,2]
[332770248,1721511041974,-805.64,0.00013698,2]
[332770249,1721511041983,-500.0,0.00013698,2]
[332770250,1721511041992,-520.44,0.00013698,2]
[332770251,1721511042002,-500.0,0.00013698,2]
[332770252,1721511042013,-500.0,0.00013698,2]
[332770253,1721511042022,-500.0,0.00013698,2]
[332770254,1721511042032,-500.0,0.00013698,2]
[332770256,1721511042043,-500.0,0.00013698,2]
[332770258,1721511042053,-500.0,0.00013698,2]
[332770260,1721511042064,-1222.27,0.00013698,2]
[332770261,1721511042075,-2977.85,0.00013698,2]
[332770262,1721511042085,-500.0,0.00013698,2]
[332770263,1721511042095,-500.0,0.00013698,2]
[332770264,1721511042106,-398.38256931,0.00013698,2]
[332770265,1721511042117,-500.0,0.00013698,2]
[332770266,1721511042127,-213.5647246,0.00013698,2]
[332770267,1721511042139,-501.25801672,0.00013698,2]
[332770268,1721511042150,-500.0,0.00013698,2]
[332770269,1721511042159,-1162.5,0.00013698,2]
[332770270,1721511042169,-500.0,0.00013698,2]
[332770271,1721511042178,-1667.71,0.00013698,2]
[332770272,1721511042188,-500.0,0.00013698,2]
[332770273,1721511042197,-500.0,0.00013698,2]
[332770274,1721511042206,-500.0,0.00013698,2]
[332770275,1721511042216,-502.24550809,0.00013698,2]
[332770276,1721511042225,-500.0,0.00013698,2]
[332770277,1721511042235,-1824.35,0.00013698,2]
[332770278,1721511042245,-2053.74,0.00013698,2]
[332770279,1721511042255,-500.0,0.00013698,2]
[332770280,1721511042266,-500.0,0.00013698,2]
[332770281,1721511042277,-300.0,0.00013698,2]
[332770283,1721511042287,-632.86,0.00013698,2]
[332770284,1721511042297,-1040.05,0.00013698,2]
[332770285,1721511042308,-500.0,0.00013698,2]
[332770287,1721511042318,-500.0,0.00013698,2]
[332770289,1721511042329,-500.0,0.00013698,2]
[332770291,1721511042338,-250.0,0.00013698,2]
[332770293,1721511042349,-500.0,0.00013698,2]
[332770295,1721511042361,-1968.82,0.00013698,2]
[332770296,1721511042371,-500.0,0.00013698,2]
[332770297,1721511042380,-499.97734961,0.00013698,2]
[332770298,1721511042390,-500.0,0.00013698,2]
[332770299,1721511042399,-4968.92,0.00013698,2]
[332770300,1721511042409,-500.0,0.00013698,2]
[332770301,1721511042418,-500.0,0.00013698,2]
[332770302,1721511042427,-500.0,0.00013698,2]
[332770303,1721511042436,-500.0,0.00013698,2]
[332770304,1721511042445,-3052.09,0.00013698,2]
[332770305,1721511042454,-6984.72,0.00013698,2]
[332770306,1721511042463,-500.0,0.00013698,2]
[332770307,1721511042473,-640.29,0.00013698,2]
[332770308,1721511042482,-500.0,0.00013698,2]
[332770309,1721511042491,-552.15,0.00013698,2]
[332770310,1721511042501,-500.0,0.00013698,2]
[332770311,1721511042510,-359.41986597,0.00013698,2]
[332770312,1721511042521,-500.0,0.00013698,2]
[332770313,1721511042530,-500.0,0.00013698,2]
[332770314,1721511042539,-932.46,0.00013698,2]
[332770315,1721511042548,-500.0,0.00013698,2]
[332770316,1721511042557,-500.0,0.00013698,2]
[332770317,1721511042568,-491.52587826,0.00013698,2]
[332770318,1721511042577,-500.08985855,0.00013698,2]
[332770319,1721511042586,-500.0,0.00013698,2]
[332770320,1721511042595,-500.0,0.00013698,2]
[332770322,1721511042605,-500.0,0.00013698,2]
[332770323,1721511042614,-390.0,0.00013698,2]
[332770325,1721511042623,-500.0,0.00013698,2]
[332770326,1721511042632,-500.0,0.00013698,2]
[332770328,1721511042641,-539.10157171,0.00013698,2]
[332770330,1721511042651,-539.75121852,0.00013698,2]
[332770331,1721511042661,-500.0,0.00013698,2]
[332770332,1721511042672,-548.79,0.00013698,2]
[332770333,1721511042682,-3831.1,0.00013698,2]
[332770334,1721511042692,-507.51827141,0.00013698,2]
[332770335,1721511042702,-501.22838301,0.00013698,2]
[332770336,1721511042711,-505.68851242,0.00013698,2]
[332770337,1721511042721,-604.16,0.00013698,2]
[332770338,1721511042731,-500.0,0.00013698,2]
[332770339,1721511042741,-500.0,0.00013698,2]
[332770340,1721511042751,-522.98,0.00013698,2]
[332770341,1721511042760,-512.53010385,0.00013698,2]
[332770342,1721511042771,-601.52472544,0.00013698,2]
[332770343,1721511042780,-605.13,0.00013698,2]
[332770344,1721511042789,-2118.41,0.00013698,2]
[332770345,1721511042799,-2231.09,0.00013698,2]
[332770346,1721511042809,-500.0,0.00013698,2]
[332770347,1721511042819,-500.0,0.00013698,2]
[332770348,1721511042830,-500.0,0.00013698,2]
[332770349,1721511042840,-872.61,0.00013698,2]
[332770350,1721511042850,-500.0,0.00013698,2]
[332770351,1721511042861,-1579.55,0.00013698,2]
[332770352,1721511042875,-500.0,0.00013698,2]
[332770353,1721511042885,-562.72,0.00013698,2]
[332770354,1721511042894,-500.0,0.00013698,2]
[332770355,1721511042906,-538.57,0.00013698,2]
[332770356,1721511042919,-776.76,0.00013698,2]
[332770357,1721511042928,-500.0,0.00013698,2]
[332770358,1721511042939,-500.0,0.00013698,2]
[332770359,1721511042951,-219.41559619,0.00013698,2]
[332770361,1721511042961,-1928.35,0.00013698,2]
[332770363,1721511042972,-500.0,0.00013698,2]
[332770365,1721511042982,-500.0,0.00013698,2]
[332770366,1721511042992,-500.0,0.00013698,2]
[332770368,1721511043002,-8367.53,0.00013698,2]
[332770370,1721511043011,-500.0,0.00013698,2]
[332770371,1721511043021,-501.29419541,0.00013698,2]
[332770373,1721511043031,-500.0,0.00013698,2]
[332770374,1721511043040,-4825.35,0.00013698,2]
[332770376,1721511043050,-500.0,0.00013698,2]
[332770377,1721511043059,-642.89,0.00013698,2]
[332770379,1721511043071,-2472.19,0.00013698,2]
[332770381,1721511043083,-657.62,0.00013698,2]
[332770382,1721511043092,-551.83,0.00013698,2]
[332770383,1721511043102,-500.0,0.00013698,2]
[332770384,1721511043111,-500.0,0.00013698,2]
[332770385,1721511043119,-1374.85,0.00013698,2]
[332770386,1721511043129,-500.0,0.00013698,2]
[332770387,1721511043138,-500.0,0.00013698,2]
[332770388,1721511043147,-2128.3,0.00013698,2]
[332770389,1721511043156,-500.0,0.00013698,2]
[332770390,1721511043165,-2356.89,0.00013698,2]
[332770391,1721511043175,-1207.82,0.00013698,2]
[332770392,1721511043184,-502.92442484,0.00013698,2]
[332770393,1721511043193,-1046.18,0.00013698,2]
[332770394,1721511043203,-500.0,0.00013698,2]
[332770395,1721511043214,-500.0,0.00013698,2]
[332770396,1721511043224,-597.26,0.00013698,2]
[332770397,1721511043234,-506.666072,0.00013698,2]